{"text_format":"1","workbook":"xlsx","n_sheets":1,"sheets":["E1000295-v1"],"not_rendered":{"charts":0,"images":1,"macros":1,"external_links":0,"defined_names":11,"comments":0,"pivot_tables":0},"unopened":[],"bounds":{"document_bytes":16777216,"sheet_cells":100000,"rows_first":2000,"rows_last":500,"rows_between":2000,"halvings":0,"cell_chars":16384,"cell_head_chars":4096},"cells_cut":0,"cells_raw":0,"read":"whole","date_system":"1900"}

{"sheet":"E1000295-v1","index":0,"n_rows":47,"n_cols":27,"rows_kept":47,"cut":false,"hidden":false,"merged":[[37,3,37,9],[38,19,38,20],[29,22,36,22],[29,23,36,23],[29,25,36,25],[31,26,34,29],[36,10,36,13],[29,24,35,24],[10,2,10,4],[13,2,13,4],[11,2,11,4],[16,2,16,5]]}
[]
[null,"CALIFORNIA INSTITUTE OF TECHNOLOGY"]
[]
[]
[]
[null,"FORMAL DRAWING TREE REFERENCE DOCUMENT"]
[]
[null,"TITLE: ","aLIGO TCS Ring Heater replacement Fixture Assemby"]
[null,null,"for Design Review"]
[]
[null,"DOCUMENT CONTROL NO.:","E1100660",null,null,"-v1"]
[null,"RELATED DOC. CHANGE NO.: ","E1100659",null,null,"-v1"]
[]
[null,"CONTAINING ASSEMBLY:","D1101253",null,null,"-v1"]
[]
[null,"AUTHOR: ","M. JACOBSON"]
[null,"DATE: ","2011-07-12"]
[]
[null,"PURPOSE: ","This document is the formal reference for necessary revisions of each child of the stated assemblies, and the total necessary quantities for all items."]
[]
[]
[]
[]
[]
[]
[]
[]
[]
[]
["Subsystem:","RH",null,null,null,null,null,null,null,null,null,null,null,null,null,null,null,null,null,null,null,null,"PDR","delta-PDR","FDR","XXX"]
["Reporter:","Mindy Jacobson"]
["Date:","2010-08-09",null,null,null,null,null,null,null,null,null,null,null,null,null,null,null,null,null,null,null,null,null,null,null,null,"RESERVED for\nPROCUREMENT TRACKING"]
[]
[null,"Total No. Dwgs = ",{"$f":"COUNT(#REF!,U45:U56)","v":1}]
[null,"Aggregate %-complete = ",{"$f":"SUM(#REF!,U45:U56)/C34","v":{"$error":"#REF!"}}]
[]
[null,null,null,null,null,null,null,null,null,null,"QUANTITY"]
["DCN","NOTES","Level","INDENTURE CHART",null,null,null,null,null,null,"REQ'd","SPARE","TOT.","UNITS","DWG TREE REF. NO.","MATERIAL","DCC No.","NAME","TYPE","MODEL STATUS","DWG STATUS","SOURCE","REV.","REV.","REV.","REV."]
["No.",null,null,null,null,null,null,null,null,null,null,null,null,null,null,null,null,null,null,"% COMPLETE"]
["E1100659-v1",null,0,null,null,null,null,null,null,null,2,0,{"$f":"SUM(K40:L40)","v":2},"EA","E1100660-v1",null,"D1101253","aLIGO TCS RH REPLACEMENT FIXTURE ASSY","TopAssy",100,90,"MTS","N/A","V2","v1",null,{"$f":"2780*30","v":83400}]
[null,null,1,{"$f":"$C41","v":1},1,1,1,1,1,1,1,0,{"$f":"SUM(K41:L41)","v":1},"EA",null,"Al 6061","D1101255","TCS RH REPLACEMENT TM CRUTCH SUPPORT","PRT",100,100,"MTS","N/A","V1","v1"]
[null,"UC COMPONENTS",2,2,2,2,2,2,2,2,6,0,{"$f":"SUM(K42:L42)","v":6},"EA",null,"18-8 SS","C-808-N","SHCS 8-32 X .5 LONG","HW",50,0,"OTS","N/A","V1"]
[null,"UC COMPONENTS",2,2,2,2,2,2,2,2,6,0,6,"EA",null,"18-8 SS","WF-08","FLAT WASHER, #8 (NAS 620-C8 OR EQUIVALENT)","HW",100,100,"OTS","N/A",null,null,null,{"$f":"100*30","v":3000}]
[null,null,1,1,1,1,1,1,1,1,4,0,4,"EA",null,"Al 6061","D1101268","CRUTCH STIFFENER","PRT",90,0,"MTS","N/A",null,"v1"]
[null,"UC COMPONENTS",2,2,2,2,2,2,2,2,8,0,8,"EA",null,"18-8 SS","FA-608-N","FHSCS 6-32 X .5 LONG, NON-VENTED","HW",null,null,"OTS"]
[null,null,1,1,1,1,1,1,1,1,2,0,2,"EA",null,"Teflon, PFA 440","D1101254","TCS RH REPLACEMENT TM CRUTCH","PRT",100,100,"MTS","N/A","N/A","v1"]
[null,null,null,null,null,null,null,null,null,null,null,null,null,null,null,"Cu, Au-coated  "]